bitfinex-derivatives/quotes_BTCF0:USTF0_20241015
["timestamp","ask_amount","ask_price","bid_price","bid_amount"]
[1729007625741,0.0134,66091.0,66090.0,0.078473]
[1729007626032,0.0134,66091.0,66090.0,1.132393]
[1729007626335,0.0144,66091.0,66090.0,1.132393]
[1729007626540,0.0024,66091.0,66090.0,1.131393]
[1729007626844,0.0144,66091.0,66090.0,0.532393]
[1729007627041,0.0144,66091.0,66090.0,1.132393]
[1729007627231,0.0144,66091.0,66090.0,0.532393]
[1729007627438,0.0144,66091.0,66090.0,1.132393]
[1729007627636,0.0144,66091.0,66090.0,0.078473]
[1729007627637,0.3752,66091.0,66090.0,0.078473]
[1729007628232,0.3732,66091.0,66090.0,0.078473]
[1729007628442,0.0104,66091.0,66090.0,0.077473]
[1729007628636,0.0114,66091.0,66090.0,0.078473]
[1729007628837,0.0114,66091.0,66090.0,1.132393]
[1729007630251,0.0114,66091.0,66090.0,0.078473]
[1729007630454,0.3722,66091.0,66090.0,0.078473]
[1729007634957,0.075681,66083.0,66082.0,0.0004]
[1729007635255,0.075681,66083.0,66068.0,0.076498]
[1729007635256,0.3608,66083.0,66068.0,0.0008]
[1729007635550,0.3608,66073.0,66072.0,0.075693]
[1729007637052,0.3608,66073.0,66068.0,0.0008]
[1729007637053,0.075697,66069.0,66068.0,0.0008]
[1729007637258,0.0004,66069.0,66055.0,0.04338831]
[1729007637454,0.075699,66067.0,66061.0,0.075705]
[1729007637651,0.7216,66062.0,66061.0,0.075705]
[1729007637953,0.7216,66062.0,66048.0,0.0004]
[1729007638159,0.7216,66062.0,66061.0,0.075706]
[1729007638451,0.3608,66062.0,66061.0,0.075706]
[1729007639057,0.3748,66062.0,66061.0,0.075706]
[1729007639650,0.3748,66062.0,66061.0,0.076706]
[1729007640654,0.3748,66062.0,66061.0,0.077706]
[1729007641343,0.3748,66062.0,66059.0,0.0008]
[1729007641344,0.461505,66062.0,66059.0,0.0008]
[1729007641550,0.075719,66050.0,66049.0,0.04338831]
[1729007641744,0.075732,66038.0,66035.0,0.07261192]
[1729007641945,0.075734,66037.0,66036.0,0.0008]
[1729007642257,0.530414,66037.0,66036.0,0.0008]
[1729007642457,0.0004,66037.0,66036.0,0.0008]
[1729007642643,0.0004,66037.0,66036.0,0.076535]
[1729007643349,0.0004,66037.0,66026.0,0.075746]
[1729007643350,0.075737,66034.0,66026.0,0.075746]
[1729007643551,0.0004,66034.0,66029.0,0.075742]
[1729007643852,0.075746,66027.0,66026.0,0.075746]
[1729007644057,0.722,66030.0,66027.0,0.075745]
[1729007644253,0.722,66030.0,66029.0,0.0004]
[1729007644557,0.722,66030.0,66029.0,0.076143]
[1729007644749,0.722,66030.0,66029.0,0.078143]
[1729007645356,0.722,66030.0,66029.0,0.076143]
[1729007645563,0.722,66030.0,66029.0,0.0024]
[1729007645564,0.797742,66030.0,66029.0,0.0024]
[1729007645951,1.852102,66030.0,66029.0,0.0024]
[1729007646260,0.075754,66019.0,66018.0,0.0004]
[1729007646454,0.797754,66019.0,66018.0,0.0004]
[1729007646960,1.7764,66019.0,66011.0,0.0004]
[1729007647153,0.436962,66012.0,66011.0,0.0004]
[1729007647455,0.075763,66011.0,66010.0,0.0004]
[1729007647665,0.075769,66007.0,66004.0,0.075771]
[1729007647955,0.3612,66005.0,66004.0,0.075771]
[1729007649064,0.3612,66005.0,66004.0,0.085771]
[1729007649758,0.0004,66005.0,66004.0,0.085771]
[1729007649950,0.0014,66005.0,66004.0,0.085771]
[1729007651060,0.0004,66011.0,66010.0,0.075765]
[1729007651264,0.0004,66011.0,66010.0,0.076165]
[1729007652362,0.3608,66018.0,66010.0,1.05488]
[1729007652668,0.01601543,66024.0,66018.0,0.075755]
[1729007652964,0.3612,66019.0,66018.0,0.076155]
[1729007653862,0.3662,66019.0,66018.0,0.078155]
[1729007654969,1.496354,66019.0,66018.0,0.0024]
[1729007655967,1.51229343,66019.0,66018.0,0.0024]
[1729007656167,0.075762,66012.0,66011.0,0.0004]
[1729007656351,0.075762,66012.0,66010.0,0.0008]
[1729007656352,0.07577,66005.0,66003.0,0.00011385]
[1729007656663,0.43657,66005.0,66003.0,0.07588685]
[1729007656867,0.075777,65999.0,65997.0,0.075779]
[1729007657053,0.3612,65999.0,65998.0,0.076178]
[1729007657762,0.0004,65999.0,65998.0,0.076178]
[1729007658055,0.0004,65999.0,65998.0,0.676178]
[1729007658253,0.3612,66005.0,65998.0,0.676178]
[1729007658254,0.3612,66005.0,66004.0,0.075771]
[1729007658459,0.3612,66005.0,66004.0,0.076171]
[1729007659460,0.0064,66005.0,66004.0,0.077171]
[1729007660359,0.0064,66005.0,66004.0,0.531691]
[1729007660866,0.0004,66012.0,66004.0,0.531691]
[1729007660867,0.0004,66012.0,66006.0,0.075769]
[1729007661071,0.0004,66012.0,66011.0,0.076163]
[1729007661961,0.0084,66012.0,66011.0,0.076163]
[1729007662561,0.0004,66012.0,66011.0,0.076163]
[1729007662756,0.0134,66012.0,66011.0,0.076163]
[1729007662962,0.0184,66012.0,66011.0,0.076163]
[1729007663262,0.0184,66012.0,66011.0,0.09219708]
[1729007664361,0.0184,66012.0,66011.0,0.076163]
[1729007664572,0.094162,66012.0,66011.0,0.076163]
[1729007664770,0.094162,66012.0,66004.0,0.37742456]
[1729007664771,0.07577,66005.0,66004.0,0.0008]
[1729007665072,0.3612,66005.0,66004.0,0.076571]
[1729007665271,0.43697,66005.0,66004.0,0.076571]
[1729007665859,0.3612,66005.0,66004.0,0.076571]
[1729007666066,0.0004,66005.0,66004.0,0.076571]
[1729007666267,0.0004,66005.0,66004.0,1.037371]
[1729007666669,0.0004,66012.0,66011.0,0.075763]
[1729007667168,0.0004,66012.0,66011.0,0.076163]
[1729007667565,0.0004,66019.0,66016.0,0.075758]
[1729007667771,1e-06,66030.0,66029.0,0.075743]
[1729007668079,1e-06,66030.0,66029.0,1.252103]
[1729007668273,1e-06,66034.0,66029.0,3.352103]
[1729007668469,1e-06,66034.0,66033.0,0.076138]
[1729007668875,1e-06,66034.0,66033.0,1.35814025]
[1729007669068,0.0004,66050.0,66049.0,0.07572]
[1729007669468,0.0004,66050.0,66049.0,0.07612]
[1729007670371,0.0004,66050.0,66049.0,1.13032]
[1729007671182,0.0004,66050.0,66049.0,1.14614593]
[1729007671978,0.0114,66050.0,66049.0,1.14614593]
[1729007672568,0.0004,66050.0,66049.0,1.14614593]
[1729007672768,0.0214,66050.0,66049.0,0.69294593]
[1729007672968,0.0214,66050.0,66049.0,0.09294593]
[1729007673374,0.0214,66050.0,66049.0,0.07712]
[1729007674574,0.0004,66060.0,66049.0,1.13132]
[1729007674775,0.0004,66060.0,66059.0,0.076108]
[1729007675780,0.0214,66060.0,66059.0,0.076108]
[1729007676580,0.0214,66060.0,66059.0,0.077108]
[1729007677084,0.0194,66060.0,66059.0,0.077108]
[1729007677876,0.00227124,66068.0,66067.0,0.075699]
[1729007678076,0.00227124,66068.0,66067.0,0.076099]
[1729007679587,0.00227124,66068.0,66067.0,0.077099]
[1729007679881,0.0004,66069.0,66068.0,0.075698]
[1729007680080,0.3612,66069.0,66068.0,0.076098]
[1729007680475,0.0004,66069.0,66068.0,0.076098]
[1729007681481,0.0004,66069.0,66068.0,0.077098]
[1729007681688,0.0064,66069.0,66068.0,0.077098]
[1729007682383,0.0064,66069.0,66068.0,0.078098]
[1729007682982,1e-06,66069.0,66068.0,0.078498]
[1729007684582,0.07569,66075.0,66074.0,0.07569]
[1729007684777,0.07569,66075.0,66074.0,0.07609]
[1729007685487,0.3608,66077.0,66074.0,0.0004]
[1729007685690,0.436489,66077.0,66076.0,0.076089]
[1729007686483,0.436489,66077.0,66076.0,0.0004]
[1729007686883,0.436489,66077.0,66076.0,0.076089]
[1729007687082,0.436489,66077.0,66076.0,0.077089]
[1729007687977,1.036489,66077.0,66074.0,0.0014]
[1729007688177,1.036489,66077.0,66074.0,0.076091]
[1729007688178,0.43689,66075.0,66074.0,0.076091]
[1729007689183,0.43689,66075.0,66074.0,0.078091]
[1729007690287,1.49093,66075.0,66074.0,0.078091]
[1729007690489,1.5066072,66075.0,66074.0,0.078091]
[1729007691190,1.5066072,66075.0,66057.0,0.07571]
[1729007691191,0.075707,66060.0,66057.0,0.07571]
[1729007691389,0.075707,66060.0,66043.0,0.075726]
[1729007691390,0.3612,66060.0,66043.0,0.075726]
[1729007691590,0.3608,66053.0,66043.0,0.075726]
[1729007691793,0.0004,66050.0,66049.0,0.07652]
[1729007692188,1.0546,66050.0,66039.0,0.3608]
[1729007692388,0.3608,66041.0,66040.0,0.07573]
[1729007692894,0.436529,66041.0,66040.0,0.07573]
[1729007693285,0.3608,66041.0,66040.0,0.07573]
[1729007693982,0.436529,66041.0,66040.0,0.07673]
[1729007694989,0.3698,66041.0,66040.0,0.07773]
[1729007695389,1.499809,66041.0,66040.0,0.001]
[1729007695590,0.907809,66041.0,66040.0,0.002]
[1729007695794,1.507809,66041.0,66040.0,0.002]
[1729007696001,1.507809,66041.0,66040.0,0.001]
[1729007696002,1.499809,66041.0,66040.0,0.001]
[1729007696191,0.45428,66040.0,66029.0,0.0004]
[1729007696392,0.075747,66025.0,66024.0,0.00227179]
[1729007696598,0.076147,66025.0,66024.0,0.07801979]
[1729007697188,0.0004,66025.0,66024.0,0.07801979]
[1729007698496,1.130507,66025.0,66024.0,0.07801979]
[1729007698693,0.0024,66025.0,66024.0,0.07801979]
[1729007700292,0.0024,66025.0,66024.0,0.00227179]
[1729007700492,0.0024,66025.0,66018.0,0.0004]
[1729007700493,0.075754,66019.0,66018.0,0.0004]
[1729007700794,0.0004,66019.0,66018.0,0.076155]
[1729007701694,0.0014,66019.0,66018.0,0.084155]
[1729007701894,0.0014,66019.0,66018.0,0.087155]
[1729007702198,0.0004,66025.0,66024.0,0.075748]
[1729007702394,0.0004,66030.0,66029.0,0.075743]
[1729007702594,0.0004,66030.0,66029.0,0.076143]
[1729007702793,0.0004,66030.0,66029.0,1.576143]
[1729007702996,0.3608,66036.0,66035.0,0.075736]
[1729007703400,0.3608,66046.0,66045.0,0.075724]
[1729007703903,0.37707309,66046.0,66045.0,0.076124]
[1729007704100,0.00116,66050.0,66045.0,0.076124]
[1729007704309,0.3608,66058.0,66054.0,0.075714]
[1729007704513,0.3608,66058.0,66057.0,0.075711]
[1729007704804,0.3608,66058.0,66057.0,0.0004]
[1729007705006,1.490669,66058.0,66057.0,0.0004]
[1729007705904,1.490669,66058.0,66057.0,0.076111]
[1729007706207,1.41496,66058.0,66057.0,0.076111]
[1729007706391,1.42296,66058.0,66057.0,0.077111]
[1729007706906,1.43196,66058.0,66057.0,0.078111]
[1729007707207,0.3778,66058.0,66057.0,0.078111]
[1729007707607,0.017,66058.0,66057.0,0.078111]
[1729007707809,0.009,66058.0,66057.0,0.077111]
[1729007708000,0.017,66058.0,66057.0,0.078111]
[1729007708393,0.3778,66058.0,66057.0,0.078111]
[1729007708600,0.453509,66058.0,66057.0,0.078111]
[1729007708801,0.017,66058.0,66057.0,0.078111]
[1729007709311,0.3778,66058.0,66057.0,0.078111]
[1729007709502,0.017,66058.0,66057.0,0.078111]
[1729007712000,0.3612,66060.0,66057.0,0.0024]
[1729007712207,0.00227122,66072.0,66071.0,0.075695]
[1729007712515,0.00227122,66072.0,66071.0,0.076095]
[1729007713306,0.00327122,66072.0,66071.0,0.090095]
[1729007714011,0.01227122,66072.0,66071.0,0.091095]
[1729007714803,0.01127122,66072.0,66071.0,0.077095]
[1729007715113,0.01127122,66072.0,66071.0,0.078095]
[1729007715413,0.075701,66066.0,66064.0,0.075702]
[1729007715605,0.3612,66065.0,66060.0,0.075706]
[1729007715813,0.075706,66062.0,66061.0,0.075705]
[1729007716011,0.3608,66064.0,66059.0,0.0008]
[1729007716200,0.3608,66064.0,66063.0,0.076104]
[1729007716400,0.0004,66065.0,66064.0,0.075703]
[1729007716613,0.0004,66065.0,66064.0,0.076103]
[1729007717114,0.0004,66065.0,66064.0,0.077103]
[1729007718609,0.0004,66065.0,66064.0,0.076103]
[1729007718811,0.0004,66065.0,66064.0,0.077103]
[1729007719014,0.0004,66065.0,66064.0,0.078103]
[1729007719614,0.3612,66065.0,66064.0,0.078103]
[1729007719806,0.3612,66065.0,66064.0,0.077103]
[1729007720118,0.3612,66065.0,66064.0,0.078103]
[1729007720317,0.436901,66065.0,66064.0,0.0024]
[1729007720706,0.3612,66065.0,66064.0,0.078103]
[1729007721121,0.0004,66065.0,66064.0,0.078103]
[1729007721712,0.0014,66065.0,66064.0,0.078103]
[1729007722408,0.0004,66065.0,66064.0,0.077103]
[1729007722606,0.0014,66065.0,66064.0,0.078103]
[1729007724126,0.3622,66065.0,66064.0,0.078103]
[1729007724606,0.0014,66065.0,66064.0,0.078103]
[1729007725001,0.0004,66065.0,66064.0,0.078103]
[1729007725415,0.0014,66065.0,66064.0,0.078103]
[1729007725617,0.437901,66065.0,66064.0,0.078103]
[1729007725806,0.437901,66065.0,66064.0,0.0024]
[1729007726009,0.437901,66065.0,66064.0,0.078103]
[1729007726914,0.3622,66065.0,66064.0,0.078103]
[1729007727113,0.437901,66065.0,66064.0,0.078103]
[1729007727824,0.37824854,66065.0,66064.0,0.077103]
[1729007728013,0.37824854,66065.0,66064.0,0.078103]
[1729007728523,0.37724854,66065.0,66064.0,0.078103]
[1729007729110,0.0004,66065.0,66064.0,0.078103]
[1729007729312,0.0004,66065.0,66064.0,0.077103]
[1729007729511,0.0004,66065.0,66064.0,0.078103]
[1729007731028,0.0004,66065.0,66064.0,0.09375847]
[1729007731325,0.0004,66065.0,66064.0,0.078103]
[1729007731518,0.436901,66065.0,66064.0,0.078103]
[1729007734417,0.436901,66065.0,66064.0,0.0024]
[1729007734619,1.036901,66065.0,66064.0,0.0024]
[1729007735026,1.05293364,66065.0,66064.0,0.0024]
[1729007735722,1.05293364,66065.0,66064.0,0.0014]
[1729007735917,1.05293364,66065.0,66064.0,0.0024]
[1729007736526,0.45412,66064.0,66045.0,0.13396936]
[1729007736717,0.075723,66046.0,66045.0,0.0004]
[1729007736919,0.076123,66046.0,66045.0,0.076124]
[1729007737123,0.0004,66046.0,66045.0,0.076124]
[1729007739128,0.077123,66046.0,66045.0,0.077124]
[1729007739730,0.078123,66046.0,66045.0,0.077124]
[1729007740329,0.0024,66046.0,66045.0,0.077124]
[1729007740631,0.3612,66050.0,66045.0,0.077124]
[1729007740825,0.0004,66050.0,66049.0,0.07612]
[1729007741324,0.3608,66061.0,66060.0,0.075707]
[1729007741730,0.3608,66061.0,66060.0,0.076107]
[1729007742635,0.3628,66061.0,66060.0,0.078107]
[1729007742933,0.3628,66061.0,66060.0,0.077107]
[1729007743231,0.3628,66061.0,66060.0,0.078107]
[1729007744227,0.3618,66061.0,66060.0,0.078107]
[1729007744423,0.001,66061.0,66060.0,0.078107]
[1729007744723,0.076,66064.0,66063.0,0.075704]
[1729007744923,0.076,66064.0,66063.0,0.076104]
[1729007745928,0.076,66064.0,66063.0,0.077104]
[1729007746731,0.076,66064.0,66063.0,0.13655272]
[1729007746931,0.076,66064.0,66063.0,0.078104]
[1729007748221,0.4368,66064.0,66063.0,0.078104]
[1729007748434,0.076,66064.0,66063.0,0.078104]
[1729007748624,0.4368,66064.0,66063.0,0.078104]
[1729007748828,0.4368,66064.0,66063.0,0.0024]
[1729007749030,1.112503,66064.0,66063.0,0.0024]
[1729007749341,1.490623,66064.0,66063.0,0.0024]
[1729007749544,1.50643652,66064.0,66063.0,0.0024]
[1729007750439,0.075719,66050.0,66047.0,0.05845598]
[1729007750736,0.075727,66043.0,66035.0,0.0004]
[1729007750934,0.797735,66036.0,66035.0,0.0004]
[1729007751132,0.722,66036.0,66035.0,0.076136]
[1729007751438,0.436935,66036.0,66035.0,0.076136]
[1729007751737,0.3612,66036.0,66035.0,0.076136]
[1729007751936,0.3612,66036.0,66035.0,0.078136]
[1729007752440,0.0004,66036.0,66035.0,0.085136]
[1729007752628,0.0004,66036.0,66035.0,0.083136]
[1729007752829,0.0004,66036.0,66035.0,0.085136]
[1729007753539,0.36347201,66050.0,66049.0,0.07572]
[1729007753739,0.00267201,66050.0,66049.0,0.07612]
[1729007754939,0.01367201,66050.0,66049.0,0.07612]
[1729007755141,0.01967201,66050.0,66049.0,0.07712]
[1729007756627,0.09539101,66050.0,66049.0,0.0014]
[1729007757031,0.61967201,66050.0,66035.0,0.0004]
[1729007757239,0.3608,66037.0,66036.0,0.075735]
[1729007757435,0.436534,66037.0,66036.0,0.075735]
[1729007758351,0.3608,66037.0,66035.0,0.0074]
[1729007758636,0.530415,66036.0,66035.0,0.0074]
[1729007759042,1.130415,66036.0,66035.0,0.0074]
[1729007760429,1.130415,66036.0,66029.0,0.0004]
[1729007760634,0.436942,66030.0,66029.0,0.0004]
[1729007760833,0.3612,66030.0,66029.0,0.076143]
[1729007761231,0.0004,66030.0,66029.0,0.076143]
[1729007761436,0.0004,66036.0,66029.0,0.076143]
[1729007761437,0.0004,66036.0,66035.0,0.075736]
[1729007761642,0.0004,66036.0,66035.0,0.076136]
[1729007761841,0.0004,66036.0,66035.0,0.083136]
[1729007761842,0.0014,66036.0,66035.0,0.083136]
[1729007763741,0.0074,66036.0,66035.0,0.077136]
[1729007764049,0.0174,66036.0,66035.0,0.078136]
[1729007764735,0.0204,66036.0,66035.0,0.078136]
[1729007764935,0.0204,66036.0,66035.0,0.077136]
[1729007764936,0.0134,66036.0,66035.0,0.077136]
[1729007765147,0.0214,66036.0,66035.0,0.078136]
[1729007765352,0.0204,66036.0,66035.0,0.078136]
[1729007766740,0.0124,66036.0,66035.0,0.077136]
[1729007766942,0.00076,66059.0,66035.0,1.41552]
[1729007767148,0.0004,66050.0,66049.0,0.07612]
[1729007768035,0.3608,66060.0,66059.0,0.075708]
[1729007768235,0.076102,66065.0,66059.0,0.0004]
[1729007768536,0.3608,66060.0,66059.0,0.0004]
[1729007768850,0.0004,66065.0,66064.0,0.076103]
[1729007769242,0.076101,66065.0,66064.0,0.0008]
[1729007770341,1.130221,66065.0,66064.0,0.0008]
[1729007770549,1.491021,66065.0,66064.0,0.0008]
[1729007770743,0.3612,66065.0,66064.0,0.077503]
[1729007771152,0.3612,66065.0,66064.0,0.078503]
[1729007771452,0.3612,66065.0,66064.0,0.0028]
[1729007771453,0.436901,66065.0,66064.0,0.0028]
[1729007771856,0.436901,66065.0,66064.0,0.077503]
[1729007772045,0.3612,66065.0,66064.0,0.091503]
[1729007773155,0.436901,66065.0,66064.0,0.090503]
[1729007773355,0.438901,66065.0,66064.0,0.091503]
[1729007773551,0.3632,66065.0,66064.0,0.078503]
[1729007773747,0.3682,66065.0,66064.0,0.078503]
[1729007775155,0.3682,66065.0,66064.0,0.077503]
[1729007775156,0.3662,66065.0,66064.0,0.077503]
[1729007775362,0.00227122,66072.0,66064.0,1.132623]
[1729007775545,0.00227122,66072.0,66071.0,0.075695]
[1729007775745,0.00227122,66072.0,66071.0,0.076095]
[1729007776158,0.0004,66075.0,66074.0,0.075691]
[1729007776558,0.0004,66075.0,66074.0,0.076091]
[1729007777348,0.0004,66075.0,66074.0,0.077091]
[1729007777349,0.0024,66075.0,66074.0,0.077091]
[1729007777557,0.0074,66075.0,66074.0,0.078091]
[1729007781248,0.08309,66075.0,66074.0,0.078091]
[1729007781460,0.08309,66075.0,66074.0,0.0024]
[1729007781664,1.13713,66075.0,66074.0,0.0024]
[1729007781960,1.13713,66075.0,66071.0,0.0004]
[1729007782167,0.075701,66065.0,66062.0,0.075704]
[1729007782352,0.075707,66060.0,66059.0,0.076107]
[1729007782662,0.076107,66060.0,66059.0,0.076107]
[1729007782853,0.0004,66060.0,66059.0,0.076107]
[1729007783751,0.0004,66060.0,66059.0,0.077107]
[1729007783951,0.076107,66060.0,66059.0,0.077107]
[1729007784459,0.076107,66060.0,66059.0,0.077108]
[1729007785263,0.0004,66060.0,66059.0,0.077108]
[1729007785971,0.0024,66060.0,66059.0,0.078108]
[1729007786654,0.0024,66060.0,66059.0,0.077108]
[1729007786860,0.0034,66060.0,66059.0,0.078108]
[1729007787266,0.0024,66060.0,66059.0,0.077108]
[1729007787555,0.0034,66060.0,66059.0,0.077108]
[1729007787955,0.0024,66060.0,66059.0,0.077108]
[1729007788156,0.0034,66060.0,66059.0,0.077108]
[1729007789566,0.0004,66060.0,66059.0,0.076108]
[1729007789867,0.0024,66060.0,66059.0,0.077108]
[1729007790169,0.0024,66060.0,66059.0,0.0004]
[1729007790170,0.077107,66060.0,66059.0,0.0004]
[1729007790469,0.078107,66060.0,66059.0,0.0014]
[1729007790667,0.077107,66060.0,66059.0,0.0014]
[1729007790968,0.077107,66060.0,66049.0,0.0004]
[1729007790969,1.05652,66060.0,66049.0,0.0004]
[1729007791273,1.05652,66060.0,66043.0,0.04395088]
[1729007791274,0.075726,66044.0,66043.0,0.04395088]
[1729007791568,0.075728,66042.0,66041.0,0.04395088]
[1729007791761,0.076128,66042.0,66041.0,0.04395088]
[1729007792065,1.130368,66042.0,66041.0,0.04395088]
[1729007792267,1.130368,66042.0,66035.0,0.0004]
[1729007792268,0.075735,66036.0,66035.0,0.0004]
[1729007792462,0.436535,66036.0,66035.0,0.0004]
[1729007792667,0.436935,66036.0,66035.0,0.0004]
[1729007793588,0.3612,66036.0,66035.0,0.076136]
[1729007793754,0.3632,66036.0,66035.0,0.077136]
[1729007794670,0.3662,66036.0,66035.0,0.078136]
[1729007795368,0.441935,66036.0,66035.0,0.078136]
[1729007795671,0.3662,66036.0,66035.0,0.078136]
[1729007795966,0.3642,66036.0,66035.0,0.678136]
[1729007796168,0.3612,66044.0,66035.0,1.132456]
[1729007796370,0.3608,66091.0,66043.0,0.722]
[1729007796563,0.075669,66093.0,66089.0,0.3608]
[1729007796765,0.09408104,66094.0,66092.0,0.0004]
[1729007796972,0.529589,66093.0,66092.0,0.0004]
[1729007797474,1.129589,66093.0,66092.0,0.0004]
[1729007798067,1.129589,66093.0,66092.0,0.0144]
[1729007798869,0.6,66093.0,66081.0,0.075683]
[1729007799171,0.6,66093.0,66076.0,0.075688]
[1729007799172,0.075685,66080.0,66076.0,0.075688]
[1729007799375,0.0004,66077.0,66076.0,0.075688]
[1729007799872,0.6004,66077.0,66076.0,0.075688]
[1729007800171,0.6004,66077.0,66072.0,0.3608]
[1729007800369,0.6004,66077.0,66076.0,0.013]
[1729007800370,0.0004,66077.0,66076.0,0.013]
[1729007800576,0.150088,66077.0,66076.0,0.013]
[1729007800776,1.204088,66077.0,66076.0,0.013]
[1729007800976,1.204088,66077.0,66076.0,0.014]
[1729007801970,1.204088,66077.0,66076.0,0.002]
[1729007802169,1.1284,66077.0,66076.0,0.002]
[1729007802370,1.1284,66077.0,66076.0,0.077689]
[1729007802566,1.1284,66077.0,66076.0,0.086689]
[1729007802762,1.205088,66077.0,66076.0,0.090689]
[1729007803172,1.205088,66077.0,66076.0,0.004]
[1729007803379,1.205088,66077.0,66063.0,0.3608]
[1729007803380,1.204088,66077.0,66063.0,0.3608]
[1729007803578,0.0754,66077.0,66076.0,0.004]
[1729007803774,0.09166953,66077.0,66076.0,0.004]
[1729007803983,1.14566953,66077.0,66076.0,0.018]
[1729007804379,0.075692,66074.0,66063.0,0.3608]
[1729007804583,0.075689,66076.0,66050.0,0.3608]
[1729007804584,0.0004,66064.0,66050.0,0.3608]
[1729007804772,0.0004,66051.0,66050.0,0.3608]
[1729007805081,0.0004,66051.0,66050.0,0.436519]
[1729007806670,0.0014,66051.0,66050.0,0.437519]
[1729007807277,0.0064,66051.0,66050.0,0.438519]
[1729007808280,0.0054,66051.0,66050.0,0.437519]
[1729007808477,0.0154,66051.0,66050.0,0.438519]
[1729007808874,0.081118,66051.0,66050.0,0.001]
[1729007809081,0.075726,66044.0,66035.0,0.0004]
[1729007809276,0.075734,66037.0,66036.0,0.04040568]
[1729007809468,0.075742,66030.0,66027.0,0.08788565]
[1729007809681,0.075744,66028.0,66027.0,0.08788565]
[1729007809883,0.075744,66028.0,66027.0,0.06870267]
[1729007810183,0.075744,66028.0,66021.0,0.075751]
[1729007810184,0.075747,66025.0,66021.0,0.075751]
[1729007810377,0.076147,66025.0,66016.0,0.10256406]
[1729007810567,1.130507,66025.0,66016.0,0.10256406]
[1729007810772,1.130507,66025.0,66018.0,0.075755]
[1729007811482,0.075761,66013.0,66009.0,0.07803749]
[1729007811691,0.075758,66016.0,66014.0,0.075759]
[1729007811985,0.3608,66019.0,66009.0,0.00227249]
[1729007812173,0.075762,66012.0,66009.0,0.00227249]
[1729007812373,0.076162,66012.0,66009.0,0.00227249]
[1729007812687,0.076162,66012.0,66010.0,0.075764]
[1729007813488,0.077162,66012.0,66011.0,0.0074]
[1729007814882,0.077162,66012.0,66011.0,0.083163]
[1729007815081,0.077162,66012.0,66011.0,0.0074]
[1729007815994,0.09291182,66012.0,66011.0,0.0074]
[1729007816780,1.14739182,66012.0,66004.0,0.0008]
[1729007816987,0.43697,66005.0,66004.0,0.0008]
[1729007817377,0.89149,66005.0,66004.0,0.0008]
[1729007817583,1.49149,66005.0,66004.0,0.0008]
[1729007819089,0.89149,66005.0,66004.0,0.0018]
[1729007819293,1.49149,66005.0,66004.0,0.0018]
[1729007819588,0.0004,66005.0,66004.0,0.077571]
[1729007819892,0.07617,66005.0,66004.0,0.077571]
[1729007820392,0.07617,66005.0,66004.0,0.0018]
[1729007820985,0.01604747,66005.0,66004.0,0.0018]
[1729007821285,0.01604747,66005.0,66004.0,0.077571]
[1729007821685,0.09181747,66005.0,66004.0,0.077571]
[1729007821989,0.09181747,66005.0,66004.0,0.0018]
[1729007822383,0.45261747,66005.0,66004.0,0.0018]
[1729007822782,0.01604747,66005.0,66004.0,0.077571]
[1729007823180,0.01604747,66005.0,66004.0,0.0018]
[1729007823181,0.09181747,66005.0,66004.0,0.0018]
[1729007823687,0.45261747,66005.0,66004.0,0.0018]
[1729007823888,1.50713747,66005.0,66004.0,0.0018]
[1729007825290,0.075777,65999.0,65998.0,0.0008]
[1729007825594,0.436977,65999.0,65998.0,0.0008]
[1729007826092,0.436977,65999.0,65998.0,0.076578]
[1729007826290,0.436977,65999.0,65998.0,0.0008]
[1729007826597,0.444977,65999.0,65998.0,0.0008]
[1729007827488,0.456977,65999.0,65998.0,0.0018]
[1729007828001,0.458977,65999.0,65998.0,0.0018]
[1729007828291,0.458977,65999.0,65994.0,0.0004]
[1729007828292,0.075782,65995.0,65994.0,0.0004]
[1729007828486,0.530382,65995.0,65994.0,0.0004]
[1729007828678,1.130782,65995.0,65994.0,0.0004]
[1729007829085,0.076182,65995.0,65994.0,0.076183]
[1729007829686,0.01650995,65995.0,65994.0,0.076183]
[1729007829885,0.0144,65995.0,65994.0,0.076183]
[1729007830089,0.0144,65999.0,65998.0,0.075778]
[1729007830394,0.075756,66018.0,66011.0,0.075763]
[1729007830582,0.01671792,66012.0,66011.0,0.075763]
[1729007830780,0.01671792,66012.0,66011.0,0.076163]
[1729007831184,0.3612,66025.0,66011.0,1.036963]
[1729007831389,0.3612,66025.0,66018.0,0.076155]
[1729007831390,0.075754,66020.0,66018.0,0.076155]
[1729007832198,0.3612,66025.0,66018.0,0.076155]
[1729007832491,0.0004,66025.0,66018.0,0.436955]
[1729007832695,0.0004,66028.0,66024.0,0.3608]
[1729007832893,0.0004,66028.0,66027.0,0.075745]
[1729007833100,0.075731,66040.0,66036.0,0.075735]
[1729007833299,0.0004,66044.0,66036.0,0.076135]
[1729007833597,0.0004,66044.0,66041.0,0.075728]
[1729007833598,0.075727,66043.0,66041.0,0.075728]
[1729007833897,0.01636757,66044.0,66043.0,0.075727]
[1729007834090,0.01636757,66044.0,66043.0,0.076127]
[1729007834291,0.01636757,66044.0,66043.0,0.0004]
[1729007834594,0.09209357,66044.0,66043.0,0.076127]
[1729007835298,0.09209357,66044.0,66043.0,0.0004]
[1729007835495,0.09209357,66044.0,66043.0,0.0014]
[1729007835797,0.01636757,66044.0,66043.0,0.077127]
[1729007836003,0.0144,66044.0,66043.0,0.078127]